[Event "Titled Tuesday Blitz July 26 Early 2022"]
[White "Chigaev, Maksim"]
[Black "Nazari, Arad"]
[WhiteFideId "4108116"]
[BlackFideId "12577324"]
[WhiteElo "2438"]
[BlackElo "2129"]
[Result "1-0"]
[Round "06"]
[TimeControl "180+1"]
[Date "2022.07.26"]
[WhiteClock "0:00:04"]
[BlackClock "0:00:06"]

1. Nf3 {[%clk 0:03:00]}  c5 {[%clk 0:02:59]} 2. g3 {[%clk 0:02:56]}  g6 {[%clk 0:02:53]} 3. Bg2 {[%clk 0:02:53]}  Bg7 {[%clk 0:02:53]} 4. e4 {[%clk 0:02:52]}  Nc6 {[%clk 0:02:50]} 5. O-O {[%clk 0:02:52]}  d6 {[%clk 0:02:49]} 6. c3 {[%clk 0:02:52]}  Nf6 {[%clk 0:02:48]} 7. Re1 {[%clk 0:02:52]}  O-O {[%clk 0:02:48]} 8. h3 {[%clk 0:02:52]}  Rb8 {[%clk 0:02:45]} 9. a4 {[%clk 0:02:43]}  a6 {[%clk 0:02:44]} 10. d3 {[%clk 0:02:43]}  e5 {[%clk 0:02:39]} 11. Na3 {[%clk 0:02:40]}  b5 {[%clk 0:02:38]} 12. Be3 {[%clk 0:02:36]}  h6 {[%clk 0:02:31]} 13. axb5 {[%clk 0:02:31]}  axb5 {[%clk 0:02:29]} 14. Nc2 {[%clk 0:02:30]}  Be6 {[%clk 0:02:26]} 15. d4 {[%clk 0:02:19]}  cxd4 {[%clk 0:02:00]} 16. cxd4 {[%clk 0:02:15]}  Bb3 {[%clk 0:02:01]} 17. Ra3 {[%clk 0:01:57]}  exd4 {[%clk 0:01:52]} 18. Nfxd4 {[%clk 0:01:33]}  Nxd4 {[%clk 0:01:52]} 19. Bxd4 {[%clk 0:01:34]}  Be6 {[%clk 0:01:44]} 20. Nb4 {[%clk 0:01:32]}  Qd7 {[%clk 0:01:43]} 21. Ra7 {[%clk 0:01:25]}  Qc8 {[%clk 0:01:28]} 22. Qd2 {[%clk 0:01:20]}  Bxh3 {[%clk 0:01:15]} 23. Bxf6 {[%clk 0:01:05]}  Bxf6 {[%clk 0:01:16]} 24. Nd5 {[%clk 0:01:05]}  Bg5 {[%clk 0:01:00]} 25. f4 {[%clk 0:00:49]}  Bd8 {[%clk 0:01:00]} 26. Rc1 {[%clk 0:00:37]}  Qg4 {[%clk 0:00:50]} 27. Kh2 {[%clk 0:00:37]}  Bxg2 {[%clk 0:00:46]} 28. Kxg2 {[%clk 0:00:38]}  h5 {[%clk 0:00:39]} 29. Qd1 {[%clk 0:00:38]}  Qe6 {[%clk 0:00:35]} 30. Qf3 {[%clk 0:00:38]}  Rc8 {[%clk 0:00:30]} 31. f5 {[%clk 0:00:28]}  Qxd5 {[%clk 0:00:20]} 32. exd5 {[%clk 0:00:26]}  Rxc1 {[%clk 0:00:21]} 33. fxg6 {[%clk 0:00:23]}  Rc2+ {[%clk 0:00:14]} 34. Kh3 {[%clk 0:00:23]}  Rc7 {[%clk 0:00:09]} 35. Qxh5 {[%clk 0:00:19]}  fxg6 {[%clk 0:00:08]} 36. Qxg6+ {[%clk 0:00:19]}  Kh8 {[%clk 0:00:09]} 37. Qh6+ {[%clk 0:00:17]}  Kg8 {[%clk 0:00:09]} 38. Qe6+ {[%clk 0:00:16]}  Kg7 {[%clk 0:00:06]} 39. Rxc7+ {[%clk 0:00:13]}  Bxc7 {[%clk 0:00:07]} 40. Qd7+ {[%clk 0:00:14]}  Rf7 {[%clk 0:00:08]} 41. Qxb5 {[%clk 0:00:14]}  Kf6 {[%clk 0:00:09]} 42. Qe8 {[%clk 0:00:13]}  Re7 {[%clk 0:00:08]} 43. Qf8+ {[%clk 0:00:11]}  Rf7 {[%clk 0:00:08]} 44. Qh6+ {[%clk 0:00:12]}  Ke7 {[%clk 0:00:08]} 45. Qe6+ {[%clk 0:00:12]}  Kf8 {[%clk 0:00:08]} 46. b4 {[%clk 0:00:13]}  Re7 {[%clk 0:00:07]} 47. Qc8+ {[%clk 0:00:12]}  Kf7 {[%clk 0:00:08]} 48. Qf5+ {[%clk 0:00:13]}  Ke8 {[%clk 0:00:08]} 49. b5 {[%clk 0:00:13]}  Bd8 {[%clk 0:00:08]} 50. Qc8 {[%clk 0:00:11]}  Rh7+ {[%clk 0:00:05]} 51. Kg2 {[%clk 0:00:11]}  Rc7 {[%clk 0:00:05]} 52. Qa6 {[%clk 0:00:09]}  Rc2+ {[%clk 0:00:05]} 53. Kh3 {[%clk 0:00:09]}  Ke7 {[%clk 0:00:05]} 54. b6 {[%clk 0:00:06]}  Rb2 {[%clk 0:00:05]} 55. b7 {[%clk 0:00:05]}  Bc7 {[%clk 0:00:06]} 56. Qc6 {[%clk 0:00:05]}  Kd8 {[%clk 0:00:06]} 57. g4 {[%clk 0:00:06]}  Rb3+ {[%clk 0:00:07]} 58. Kh4 {[%clk 0:00:06]}  Rb1 {[%clk 0:00:05]} 59. g5 {[%clk 0:00:06]}  Rh1+ {[%clk 0:00:05]} 60. Kg4 {[%clk 0:00:07]}  Rg1+ {[%clk 0:00:06]} 61. Kf5 {[%clk 0:00:07]}  Rf1+ {[%clk 0:00:06]} 62. Kg6 {[%clk 0:00:08]}  Rb1 {[%clk 0:00:07]} 63. Kh7 {[%clk 0:00:08]}  Rh1+ {[%clk 0:00:07]} 64. Kg8 {[%clk 0:00:07]}  Rb1 {[%clk 0:00:07]} 65. g6 {[%clk 0:00:08]}  Rb2 {[%clk 0:00:08]} 66. g7 {[%clk 0:00:08]}  Rb1 {[%clk 0:00:08]} 67. Kh7 {[%clk 0:00:06]}  Rh1+ {[%clk 0:00:08]} 68. Kg6 {[%clk 0:00:06]}  Rg1+ {[%clk 0:00:08]} 69. Kf7 {[%clk 0:00:06]}  Rf1+ {[%clk 0:00:09]} 70. Kg8 {[%clk 0:00:06]}  Re1 {[%clk 0:00:08]} 71. Qb5 {[%clk 0:00:04]}  Bb8 {[%clk 0:00:06]} 72. Qa5+ {[%clk 0:00:04]} 1-0


[Site "https://www.chess.com"]

[Event "Titled Tuesday Blitz July 26 Early 2022"]
[White "D`Arruda, Ricardo D."]
[Black "Cruz Mendez, Jean Marco"]
[WhiteFideId "100692"]
[BlackFideId "3526402"]
[WhiteElo "2465"]
[BlackElo "2064"]
[Result "0-1"]
[Round "06"]
[TimeControl "180+1"]
[Date "2022.07.27"]
[WhiteClock "0:00:01"]
[BlackClock "0:00:14"]

1. d4 {[%clk 0:02:53]}  d5 {[%clk 0:02:57]} 2. Nf3 {[%clk 0:02:52]}  Nf6 {[%clk 0:02:57]} 3. g3 {[%clk 0:02:52]}  e6 {[%clk 0:02:56]} 4. Bg2 {[%clk 0:02:52]}  Be7 {[%clk 0:02:57]} 5. O-O {[%clk 0:02:52]}  O-O {[%clk 0:02:57]} 6. c4 {[%clk 0:02:52]}  c6 {[%clk 0:02:58]} 7. b3 {[%clk 0:02:51]}  Nbd7 {[%clk 0:02:55]} 8. Nbd2 {[%clk 0:02:51]}  b6 {[%clk 0:02:54]} 9. Bb2 {[%clk 0:02:51]}  Bb7 {[%clk 0:02:53]} 10. Rc1 {[%clk 0:02:49]}  Rc8 {[%clk 0:02:53]} 11. Re1 {[%clk 0:02:45]}  c5 {[%clk 0:02:53]} 12. dxc5 {[%clk 0:02:42]}  Nxc5 {[%clk 0:02:54]} 13. Ne5 {[%clk 0:02:38]}  Nfd7 {[%clk 0:02:25]} 14. Nxd7 {[%clk 0:02:37]}  Qxd7 {[%clk 0:02:26]} 15. cxd5 {[%clk 0:02:28]}  Bxd5 {[%clk 0:02:27]} 16. Nc4 {[%clk 0:02:20]}  Rfd8 {[%clk 0:02:17]} 17. Bxd5 {[%clk 0:02:05]}  Qxd5 {[%clk 0:02:18]} 18. Qxd5 {[%clk 0:02:04]}  Rxd5 {[%clk 0:02:19]} 19. Red1 {[%clk 0:01:43]}  Ne4 {[%clk 0:01:58]} 20. Ne3 {[%clk 0:01:32]}  Rxd1+ {[%clk 0:01:47]} 21. Nxd1 {[%clk 0:01:28]}  Rxc1 {[%clk 0:01:43]} 22. Bxc1 {[%clk 0:01:29]}  Bc5 {[%clk 0:01:43]} 23. Kf1 {[%clk 0:01:25]}  Bd4 {[%clk 0:01:38]} 24. f3 {[%clk 0:01:25]}  Nd6 {[%clk 0:01:32]} 25. e3 {[%clk 0:01:22]}  Bf6 {[%clk 0:01:32]} 26. Ke2 {[%clk 0:01:20]}  Nb5 {[%clk 0:01:20]} 27. Kd3 {[%clk 0:01:19]}  Kf8 {[%clk 0:01:18]} 28. e4 {[%clk 0:01:19]}  Ke8 {[%clk 0:01:17]} 29. Bf4 {[%clk 0:01:16]}  Kd7 {[%clk 0:01:15]} 30. a4 {[%clk 0:01:10]}  Nc7 {[%clk 0:01:13]} 31. Bxc7 {[%clk 0:01:08]}  Kxc7 {[%clk 0:01:14]} 32. Kc4 {[%clk 0:01:07]}  Kc6 {[%clk 0:01:13]} 33. b4 {[%clk 0:01:04]}  a6 {[%clk 0:01:13]} 34. b5+ {[%clk 0:01:05]}  axb5+ {[%clk 0:01:14]} 35. axb5+ {[%clk 0:01:05]}  Kc7 {[%clk 0:01:12]} 36. f4 {[%clk 0:01:03]}  Be7 {[%clk 0:01:13]} 37. Nc3 {[%clk 0:00:50]}  Bc5 {[%clk 0:01:13]} 38. Ne2 {[%clk 0:00:50]}  Bf2 {[%clk 0:01:09]} 39. g4 {[%clk 0:00:49]}  g6 {[%clk 0:01:00]} 40. h3 {[%clk 0:00:48]}  Kd6 {[%clk 0:00:52]} 41. e5+ {[%clk 0:00:44]}  Kc7 {[%clk 0:00:52]} 42. Kd3 {[%clk 0:00:39]}  h6 {[%clk 0:00:45]} 43. Ke4 {[%clk 0:00:36]}  g5 {[%clk 0:00:40]} 44. fxg5 {[%clk 0:00:32]}  hxg5 {[%clk 0:00:41]} 45. Nc1 {[%clk 0:00:30]}  Bc5 {[%clk 0:00:37]} 46. Nd3 {[%clk 0:00:31]}  Be7 {[%clk 0:00:37]} 47. Nb2 {[%clk 0:00:29]}  Bc5 {[%clk 0:00:35]} 48. Nc4 {[%clk 0:00:30]}  Kd7 {[%clk 0:00:35]} 49. Nd2 {[%clk 0:00:29]}  Ke7 {[%clk 0:00:33]} 50. Kd3 {[%clk 0:00:28]}  f6 {[%clk 0:00:26]} 51. exf6+ {[%clk 0:00:27]}  Kxf6 {[%clk 0:00:27]} 52. Ne4+ {[%clk 0:00:27]}  Ke5 {[%clk 0:00:27]} 53. Nxc5 {[%clk 0:00:28]}  bxc5 {[%clk 0:00:28]} 54. Kc4 {[%clk 0:00:23]}  Kd6 {[%clk 0:00:28]} 55. b6 {[%clk 0:00:23]}  Kc6 {[%clk 0:00:28]} 56. b7 {[%clk 0:00:23]}  Kxb7 {[%clk 0:00:26]} 57. Kxc5 {[%clk 0:00:24]}  Kc7 {[%clk 0:00:25]} 58. Kd4 {[%clk 0:00:22]}  Kd6 {[%clk 0:00:25]} 59. Ke4 {[%clk 0:00:22]}  e5 {[%clk 0:00:19]} 60. Kf3 {[%clk 0:00:11]}  Kd5 {[%clk 0:00:19]} 61. Kg3 {[%clk 0:00:12]}  e4 {[%clk 0:00:18]} 62. h4 {[%clk 0:00:12]}  gxh4+ {[%clk 0:00:18]} 63. Kxh4 {[%clk 0:00:13]}  e3 {[%clk 0:00:15]} 64. Kg3 {[%clk 0:00:13]}  Kd4 {[%clk 0:00:15]} 65. g5 {[%clk 0:00:05]}  Kd3 {[%clk 0:00:15]} 66. g6 {[%clk 0:00:06]}  e2 {[%clk 0:00:15]} 67. g7 {[%clk 0:00:01]}  e1=Q+ {[%clk 0:00:15]} 68. Kf3 {[%clk 0:00:01]}  Qe4+ {[%clk 0:00:14]} 0-1


[Site "https://www.chess.com"]

[Event "Titled Tuesday Blitz July 26 Early 2022"]
[White "Goltsev, Dmitry"]
[Black "Hansen, Eric"]
[WhiteFideId "24176710"]
[BlackFideId "2606771"]
[WhiteElo "2258"]
[BlackElo "2568"]
[Result "0-1"]
[Round "06"]
[TimeControl "180+1"]
[Date "2022.07.26"]
[WhiteClock "0:00:05"]
[BlackClock "0:01:09"]

1. e4 {[%clk 0:02:59]}  c5 {[%clk 0:02:56]} 2. Nf3 {[%clk 0:02:59]}  e6 {[%clk 0:02:55]} 3. d4 {[%clk 0:03:00]}  cxd4 {[%clk 0:02:56]} 4. Nxd4 {[%clk 0:03:01]}  a6 {[%clk 0:02:56]} 5. c4 {[%clk 0:03:00]}  Qc7 {[%clk 0:02:55]} 6. Nc3 {[%clk 0:03:00]}  Nf6 {[%clk 0:02:55]} 7. Be2 {[%clk 0:03:00]}  Bb4 {[%clk 0:02:54]} 8. f3 {[%clk 0:02:52]}  Nc6 {[%clk 0:02:53]} 9. Be3 {[%clk 0:02:51]}  d5 {[%clk 0:02:51]} 10. exd5 {[%clk 0:02:48]}  exd5 {[%clk 0:02:51]} 11. O-O {[%clk 0:02:48]}  dxc4 {[%clk 0:02:40]} 12. Bxc4 {[%clk 0:02:36]}  O-O {[%clk 0:02:37]} 13. Nxc6 {[%clk 0:02:11]}  Qxc6 {[%clk 0:02:35]} 14. Qb3 {[%clk 0:02:11]}  Bc5 {[%clk 0:02:34]} 15. Bxc5 {[%clk 0:01:59]}  Qxc5+ {[%clk 0:02:33]} 16. Kh1 {[%clk 0:02:00]}  b5 {[%clk 0:02:33]} 17. Bd5 {[%clk 0:01:58]}  Ra7 {[%clk 0:02:33]} 18. Rac1 {[%clk 0:01:51]}  Qb6 {[%clk 0:02:20]} 19. Ne4 {[%clk 0:01:47]}  Nxd5 {[%clk 0:02:19]} 20. Qxd5 {[%clk 0:01:48]}  Be6 {[%clk 0:02:19]} 21. Qd6 {[%clk 0:01:35]}  Qxd6 {[%clk 0:02:15]} 22. Nxd6 {[%clk 0:01:36]}  Bxa2 {[%clk 0:02:15]} 23. Ra1 {[%clk 0:01:36]}  Rd7 {[%clk 0:02:15]} 24. Rxa2 {[%clk 0:01:16]}  Rxd6 {[%clk 0:02:15]} 25. h3 {[%clk 0:01:16]}  Re8 {[%clk 0:02:10]} 26. Rfa1 {[%clk 0:01:13]}  Ree6 {[%clk 0:02:10]} 27. b4 {[%clk 0:01:10]}  h5 {[%clk 0:02:10]} 28. Kh2 {[%clk 0:01:08]}  h4 {[%clk 0:02:09]} 29. Rc2 {[%clk 0:01:08]}  Rc6 {[%clk 0:02:05]} 30. Rd2 {[%clk 0:01:07]}  Kh7 {[%clk 0:01:57]} 31. Rd7 {[%clk 0:01:02]}  Kg6 {[%clk 0:01:56]} 32. Ra7 {[%clk 0:00:56]}  Kf6 {[%clk 0:01:54]} 33. Ra2 {[%clk 0:00:43]}  g5 {[%clk 0:01:52]} 34. g3 {[%clk 0:00:40]}  hxg3+ {[%clk 0:01:45]} 35. Kxg3 {[%clk 0:00:41]}  Kg6 {[%clk 0:01:45]} 36. h4 {[%clk 0:00:35]}  gxh4+ {[%clk 0:01:33]} 37. Kxh4 {[%clk 0:00:36]}  Rf6 {[%clk 0:01:34]} 38. Kg3 {[%clk 0:00:22]}  Rc3 {[%clk 0:01:33]} 39. R2xa6 {[%clk 0:00:18]}  Rxf3+ {[%clk 0:01:33]} 40. Kg2 {[%clk 0:00:17]}  Rf4 {[%clk 0:01:30]} 41. Ra3 {[%clk 0:00:15]}  Rxb4 {[%clk 0:01:26]} 42. Rg3+ {[%clk 0:00:14]}  Kf5 {[%clk 0:01:16]} 43. Rb7 {[%clk 0:00:14]}  Rb2+ {[%clk 0:01:13]} 44. Kg1 {[%clk 0:00:13]}  Kf4 {[%clk 0:01:11]} 45. Rh3 {[%clk 0:00:06]}  Rf5 {[%clk 0:01:11]} 46. Kh1 {[%clk 0:00:05]}  Kg4 {[%clk 0:01:09]} 0-1


[Site "https://www.chess.com"]

[Event "Titled Tuesday Blitz July 26 Early 2022"]
[White "Hafiz, Arif Abdul"]
[Black "Fecker, Noah"]
[WhiteFideId "7104227"]
[BlackFideId "1334263"]
[WhiteElo "2198"]
[BlackElo "2312"]
[Result "1-0"]
[Round "06"]
[TimeControl "180+1"]
[Date "2022.07.26"]
[WhiteClock "0:00:32"]
[BlackClock "0:00:16"]

1. e4 {[%clk 0:03:00]}  e6 {[%clk 0:02:59]} 2. d4 {[%clk 0:03:01]}  d5 {[%clk 0:02:59]} 3. Nc3 {[%clk 0:03:00]}  dxe4 {[%clk 0:02:59]} 4. Nxe4 {[%clk 0:03:00]}  Bd7 {[%clk 0:02:58]} 5. Nf3 {[%clk 0:03:00]}  Bc6 {[%clk 0:02:58]} 6. Bd3 {[%clk 0:03:00]}  Nd7 {[%clk 0:02:57]} 7. O-O {[%clk 0:03:00]}  Ngf6 {[%clk 0:02:58]} 8. Ng3 {[%clk 0:03:00]}  g6 {[%clk 0:02:55]} 9. Qe2 {[%clk 0:02:52]}  Bg7 {[%clk 0:02:54]} 10. Rd1 {[%clk 0:02:50]}  O-O {[%clk 0:02:54]} 11. Bg5 {[%clk 0:02:46]}  h6 {[%clk 0:02:51]} 12. Bf4 {[%clk 0:02:44]}  Bxf3 {[%clk 0:02:31]} 13. Qxf3 {[%clk 0:02:43]}  Nd5 {[%clk 0:02:31]} 14. Bd2 {[%clk 0:02:41]}  c6 {[%clk 0:02:26]} 15. c4 {[%clk 0:02:33]}  N5f6 {[%clk 0:02:18]} 16. Bb4 {[%clk 0:02:26]}  Re8 {[%clk 0:02:16]} 17. Ne4 {[%clk 0:02:19]}  Nxe4 {[%clk 0:02:12]} 18. Bxe4 {[%clk 0:02:20]}  a5 {[%clk 0:02:04]} 19. Bc3 {[%clk 0:02:16]}  a4 {[%clk 0:02:03]} 20. Rd2 {[%clk 0:02:14]}  Nb6 {[%clk 0:01:59]} 21. Qe2 {[%clk 0:02:12]}  Qg5 {[%clk 0:01:57]} 22. Rad1 {[%clk 0:02:09]}  Rad8 {[%clk 0:01:49]} 23. g3 {[%clk 0:02:09]}  Rd7 {[%clk 0:01:40]} 24. h4 {[%clk 0:02:07]}  Qe7 {[%clk 0:01:37]} 25. h5 {[%clk 0:01:51]}  g5 {[%clk 0:01:34]} 26. Bc2 {[%clk 0:01:49]}  a3 {[%clk 0:01:20]} 27. b3 {[%clk 0:01:43]}  Nc8 {[%clk 0:01:12]} 28. Qe4 {[%clk 0:01:24]}  Qf6 {[%clk 0:01:06]} 29. Qh7+ {[%clk 0:01:19]}  Kf8 {[%clk 0:01:06]} 30. Bb4+ {[%clk 0:01:19]}  Ne7 {[%clk 0:01:03]} 31. Rd3 {[%clk 0:01:11]}  Red8 {[%clk 0:00:56]} 32. Bc5 {[%clk 0:01:05]}  Bh8 {[%clk 0:00:32]} 33. Kg2 {[%clk 0:00:54]}  Qg7 {[%clk 0:00:31]} 34. Qe4 {[%clk 0:00:54]}  Kg8 {[%clk 0:00:32]} 35. Bxa3 {[%clk 0:00:54]}  Nf5 {[%clk 0:00:31]} 36. d5 {[%clk 0:00:51]}  cxd5 {[%clk 0:00:27]} 37. cxd5 {[%clk 0:00:51]}  Nd6 {[%clk 0:00:14]} 38. Bxd6 {[%clk 0:00:49]}  Rxd6 {[%clk 0:00:15]} 39. dxe6 {[%clk 0:00:49]}  Rxd3 {[%clk 0:00:16]} 40. Rxd3 {[%clk 0:00:33]}  Rxd3 {[%clk 0:00:16]} 41. e7 {[%clk 0:00:32]} 1-0


[Site "https://www.chess.com"]

[Event "Titled Tuesday Blitz July 26 Early 2022"]
[White "Harsh Suresh"]
[Black "Garrido, Denis"]
[WhiteFideId "45018464"]
[BlackFideId "601217"]
[WhiteElo "2059"]
[BlackElo "2427"]
[Result "1-0"]
[Round "06"]
[TimeControl "180+1"]
[Date "2022.07.26"]
[WhiteClock "0:00:26"]
[BlackClock "0:00:16"]

1. e4 {[%clk 0:03:00]}  e5 {[%clk 0:02:59]} 2. Nf3 {[%clk 0:03:00]}  Nc6 {[%clk 0:03:00]} 3. Bc4 {[%clk 0:03:00]}  Nf6 {[%clk 0:02:59]} 4. O-O {[%clk 0:03:00]}  Bc5 {[%clk 0:02:56]} 5. d4 {[%clk 0:03:00]}  Bxd4 {[%clk 0:02:56]} 6. Nxd4 {[%clk 0:02:59]}  Nxd4 {[%clk 0:02:56]} 7. f4 {[%clk 0:02:59]}  d6 {[%clk 0:02:56]} 8. fxe5 {[%clk 0:03:00]}  dxe5 {[%clk 0:02:57]} 9. Bg5 {[%clk 0:03:00]}  Be6 {[%clk 0:02:53]} 10. Na3 {[%clk 0:03:01]}  Qe7 {[%clk 0:02:44]} 11. c3 {[%clk 0:03:00]}  Nc6 {[%clk 0:02:31]} 12. Bxf6 {[%clk 0:02:57]}  gxf6 {[%clk 0:02:31]} 13. Kh1 {[%clk 0:02:55]}  Rd8 {[%clk 0:02:27]} 14. Qe1 {[%clk 0:02:50]}  Rd6 {[%clk 0:02:24]} 15. Qf2 {[%clk 0:02:48]}  Rg8 {[%clk 0:02:11]} 16. Qxf6 {[%clk 0:02:29]}  Qxf6 {[%clk 0:01:56]} 17. Rxf6 {[%clk 0:02:28]}  Ke7 {[%clk 0:01:48]} 18. Raf1 {[%clk 0:02:17]}  Rg6 {[%clk 0:01:42]} 19. R6f2 {[%clk 0:02:08]}  Nd8 {[%clk 0:01:35]} 20. Bxe6 {[%clk 0:02:02]}  Rdxe6 {[%clk 0:01:29]} 21. Nc4 {[%clk 0:02:00]}  Rg4 {[%clk 0:01:21]} 22. Re2 {[%clk 0:01:47]}  Ke8 {[%clk 0:01:11]} 23. h3 {[%clk 0:01:38]}  Rf4 {[%clk 0:00:55]} 24. Rxf4 {[%clk 0:01:27]}  exf4 {[%clk 0:00:56]} 25. Kg1 {[%clk 0:01:27]}  Nc6 {[%clk 0:00:52]} 26. a4 {[%clk 0:01:22]}  f5 {[%clk 0:00:48]} 27. e5 {[%clk 0:01:20]}  b6 {[%clk 0:00:48]} 28. b4 {[%clk 0:01:15]}  a6 {[%clk 0:00:43]} 29. b5 {[%clk 0:01:15]}  axb5 {[%clk 0:00:43]} 30. axb5 {[%clk 0:01:16]}  Ne7 {[%clk 0:00:42]} 31. Nb2 {[%clk 0:01:12]}  c6 {[%clk 0:00:36]} 32. c4 {[%clk 0:00:50]}  Ng6 {[%clk 0:00:28]} 33. Nd3 {[%clk 0:00:47]}  cxb5 {[%clk 0:00:27]} 34. cxb5 {[%clk 0:00:48]}  Kd7 {[%clk 0:00:21]} 35. Kf2 {[%clk 0:00:46]}  Re8 {[%clk 0:00:18]} 36. Kf3 {[%clk 0:00:42]}  Ke6 {[%clk 0:00:16]} 37. Rc2 {[%clk 0:00:26]}  Nxe5+ {[%clk 0:00:15]} 38. Nxe5 {[%clk 0:00:26]}  Kxe5 {[%clk 0:00:16]} 39. Re2+ {[%clk 0:00:26]} 1-0


[Site "https://www.chess.com"]

[Event "Titled Tuesday Blitz July 26 Early 2022"]
[White "Ismagilov, Damir"]
[Black "Mardov, Dimitar"]
[WhiteFideId "34199982"]
[BlackFideId "30919495"]
[WhiteElo "2138"]
[BlackElo "2185"]
[Result "0-1"]
[Round "06"]
[TimeControl "180+1"]
[Date "2022.07.26"]
[WhiteClock "0:00:07"]
[BlackClock "0:00:32"]

1. d4 {[%clk 0:03:00]}  Nf6 {[%clk 0:02:59]} 2. c4 {[%clk 0:03:00]}  e6 {[%clk 0:02:58]} 3. Nf3 {[%clk 0:03:00]}  Bb4+ {[%clk 0:02:56]} 4. Nbd2 {[%clk 0:03:00]}  O-O {[%clk 0:02:55]} 5. a3 {[%clk 0:02:59]}  Be7 {[%clk 0:02:56]} 6. e4 {[%clk 0:02:59]}  d6 {[%clk 0:02:56]} 7. Be2 {[%clk 0:02:58]}  Nfd7 {[%clk 0:02:57]} 8. b4 {[%clk 0:02:56]}  e5 {[%clk 0:02:57]} 9. d5 {[%clk 0:02:55]}  a5 {[%clk 0:02:57]} 10. Bb2 {[%clk 0:02:55]}  c6 {[%clk 0:02:55]} 11. O-O {[%clk 0:02:53]}  Na6 {[%clk 0:02:49]} 12. Qb3 {[%clk 0:02:50]}  Nc7 {[%clk 0:02:33]} 13. Bc3 {[%clk 0:02:39]}  cxd5 {[%clk 0:02:27]} 14. cxd5 {[%clk 0:02:36]}  a4 {[%clk 0:02:24]} 15. Qc2 {[%clk 0:02:27]}  b5 {[%clk 0:02:24]} 16. Rac1 {[%clk 0:02:25]}  Ra7 {[%clk 0:02:20]} 17. Rfe1 {[%clk 0:02:17]}  Nb6 {[%clk 0:02:18]} 18. Nf1 {[%clk 0:02:11]}  f5 {[%clk 0:02:04]} 19. exf5 {[%clk 0:01:36]}  Bxf5 {[%clk 0:01:33]} 20. Qa2 {[%clk 0:01:35]}  Nbxd5 {[%clk 0:01:24]} 21. Bxb5 {[%clk 0:01:32]}  Be6 {[%clk 0:01:21]} 22. Bc4 {[%clk 0:01:32]}  Rxf3 {[%clk 0:01:14]} 23. gxf3 {[%clk 0:01:27]}  Nf4 {[%clk 0:01:11]} 24. Bxe6+ {[%clk 0:01:16]}  Ncxe6 {[%clk 0:01:12]} 25. Rcd1 {[%clk 0:01:10]}  Qf8 {[%clk 0:01:07]} 26. Ng3 {[%clk 0:00:54]}  Qf7 {[%clk 0:01:02]} 27. Kh1 {[%clk 0:00:40]}  Rc7 {[%clk 0:00:53]} 28. Bd2 {[%clk 0:00:34]}  Nd3 {[%clk 0:00:49]} 29. Qd5 {[%clk 0:00:31]}  Nxf2+ {[%clk 0:00:45]} 30. Kg1 {[%clk 0:00:24]}  Nxd1 {[%clk 0:00:45]} 31. Rxd1 {[%clk 0:00:24]}  Nd4 {[%clk 0:00:42]} 32. Qxf7+ {[%clk 0:00:23]}  Kxf7 {[%clk 0:00:43]} 33. Be3 {[%clk 0:00:16]}  Nb5 {[%clk 0:00:41]} 34. Rd3 {[%clk 0:00:14]}  Ke6 {[%clk 0:00:36]} 35. Ne4 {[%clk 0:00:13]}  d5 {[%clk 0:00:36]} 36. Nc5+ {[%clk 0:00:13]}  Bxc5 {[%clk 0:00:37]} 37. Bxc5 {[%clk 0:00:14]}  d4 {[%clk 0:00:36]} 38. Kf2 {[%clk 0:00:12]}  Kd5 {[%clk 0:00:36]} 39. Ke2 {[%clk 0:00:10]}  g5 {[%clk 0:00:33]} 40. h3 {[%clk 0:00:09]}  Rf7 {[%clk 0:00:33]} 41. Kf2 {[%clk 0:00:07]}  e4 {[%clk 0:00:32]} 0-1


[Site "https://www.chess.com"]

[Event "Titled Tuesday Blitz July 26 Early 2022"]
[White "Kozlov, Oleg"]
[Black "Guz, Ari"]
[WhiteFideId "4104544"]
[BlackFideId "2825759"]
[WhiteElo "2132"]
[BlackElo "1913"]
[Result "1-0"]
[Round "06"]
[TimeControl "180+1"]
[Date "2022.07.27"]
[WhiteClock "0:00:10"]
[BlackClock "0:00:11"]

1. d4 {[%clk 0:03:00]}  e6 {[%clk 0:02:52]} 2. c4 {[%clk 0:02:58]}  d5 {[%clk 0:02:52]} 3. Nf3 {[%clk 0:02:57]}  Nf6 {[%clk 0:02:50]} 4. g3 {[%clk 0:02:57]}  dxc4 {[%clk 0:02:45]} 5. Bg2 {[%clk 0:02:56]}  Bd7 {[%clk 0:02:46]} 6. Ne5 {[%clk 0:02:54]}  Bc6 {[%clk 0:02:46]} 7. Nxc6 {[%clk 0:02:53]}  Nxc6 {[%clk 0:02:47]} 8. O-O {[%clk 0:02:41]}  Qd7 {[%clk 0:02:47]} 9. e3 {[%clk 0:02:39]}  O-O-O {[%clk 0:02:45]} 10. Qa4 {[%clk 0:02:37]}  Nd5 {[%clk 0:02:20]} 11. Qxc4 {[%clk 0:02:33]}  h5 {[%clk 0:02:19]} 12. Nc3 {[%clk 0:02:25]}  h4 {[%clk 0:02:18]} 13. Bd2 {[%clk 0:02:20]}  hxg3 {[%clk 0:02:16]} 14. hxg3 {[%clk 0:02:20]}  Bb4 {[%clk 0:02:08]} 15. Rac1 {[%clk 0:02:16]}  Bxc3 {[%clk 0:02:08]} 16. bxc3 {[%clk 0:02:11]}  Rh5 {[%clk 0:02:02]} 17. Qb3 {[%clk 0:02:09]}  Rdh8 {[%clk 0:01:55]} 18. c4 {[%clk 0:02:04]}  Nb6 {[%clk 0:01:47]} 19. Rb1 {[%clk 0:02:04]}  Nd8 {[%clk 0:01:40]} 20. a4 {[%clk 0:01:47]}  Qxa4 {[%clk 0:01:20]} 21. Qxa4 {[%clk 0:01:44]}  Nxa4 {[%clk 0:01:21]} 22. c5 {[%clk 0:01:24]}  a6 {[%clk 0:01:11]} 23. Bf3 {[%clk 0:01:14]}  Rf5 {[%clk 0:00:52]} 24. Be4 {[%clk 0:00:49]}  Rfh5 {[%clk 0:00:49]} 25. Ra1 {[%clk 0:00:49]}  Nb2 {[%clk 0:00:36]} 26. Bc3 {[%clk 0:00:31]}  Nc4 {[%clk 0:00:34]} 27. Ra4 {[%clk 0:00:31]}  b5 {[%clk 0:00:30]} 28. Rxa6 {[%clk 0:00:30]}  Kd7 {[%clk 0:00:21]} 29. Rb1 {[%clk 0:00:22]}  c6 {[%clk 0:00:21]} 30. Ra7+ {[%clk 0:00:22]}  Ke8 {[%clk 0:00:21]} 31. Kg2 {[%clk 0:00:16]}  Rh2+ {[%clk 0:00:20]} 32. Kg1 {[%clk 0:00:16]}  f5 {[%clk 0:00:20]} 33. Bf3 {[%clk 0:00:16]}  g5 {[%clk 0:00:20]} 34. Ra8 {[%clk 0:00:16]}  Kd7 {[%clk 0:00:17]} 35. Rba1 {[%clk 0:00:16]}  e5 {[%clk 0:00:11]} 36. R1a7+ {[%clk 0:00:16]}  Ke6 {[%clk 0:00:12]} 37. d5+ {[%clk 0:00:14]}  cxd5 {[%clk 0:00:11]} 38. Ra6+ {[%clk 0:00:14]}  Kf7 {[%clk 0:00:12]} 39. Bxd5+ {[%clk 0:00:14]}  Ke7 {[%clk 0:00:10]} 40. R6a7+ {[%clk 0:00:13]}  Kf6 {[%clk 0:00:11]} 41. c6 {[%clk 0:00:13]}  Ne6 {[%clk 0:00:08]} 42. Rxh8 {[%clk 0:00:12]}  Rxh8 {[%clk 0:00:09]} 43. c7 {[%clk 0:00:08]}  Rc8 {[%clk 0:00:09]} 44. Ra6 {[%clk 0:00:08]}  Rxc7 {[%clk 0:00:08]} 45. Rxe6+ {[%clk 0:00:09]}  Kg7 {[%clk 0:00:09]} 46. Bxc4 {[%clk 0:00:08]}  Rxc4 {[%clk 0:00:09]} 47. Bxe5+ {[%clk 0:00:09]}  Kf7 {[%clk 0:00:10]} 48. Rb6 {[%clk 0:00:10]}  Ke7 {[%clk 0:00:11]} 49. Rxb5 {[%clk 0:00:09]}  Ke6 {[%clk 0:00:11]} 50. Bd4 {[%clk 0:00:10]}  g4 {[%clk 0:00:12]} 51. Re5+ {[%clk 0:00:10]}  Kf6 {[%clk 0:00:11]} 52. Rc5+ {[%clk 0:00:10]} 1-0


[Site "https://www.chess.com"]